bitfinex/quotes_SOLUSD_20241215
["timestamp","ask_amount","ask_price","bid_price","bid_amount"]
[1734246906977,7.9137,218.02,217.95,7.9930857]
[1734246907186,7.9137,218.02,217.94,7.9930857]
[1734246907357,7.9137,218.02,217.93,7.9930857]
[1734246910562,7.9137,218.02,217.94,7.9930857]
[1734246910752,7.9137,218.02,217.95,7.9930857]
[1734246912293,7.9137,218.02,217.94,7.9930857]
[1734246912449,7.9137,218.02,217.92,7.9930857]
[1734246912884,7.9137,218.02,217.93,7.9930857]
[1734246913381,6.3053,218.02,217.96,7.9930857]
[1734246914281,6.56169,218.07,217.96,7.9930857]
[1734246914584,6.4362,218.07,217.98,7.9930857]
[1734246916295,6.4362,218.07,217.97,7.9930857]
[1734246918156,6.4362,218.07,217.98,7.9930857]
[1734246918394,6.4362,218.07,217.99,7.9930857]
[1734246923689,6.4362,218.07,217.94,20.6879405]
[1734246923991,23.902374,218.06,217.95,7.9930857]
[1734246924774,6.4362,218.07,217.99,7.9930857]
[1734246925764,6.4362,218.07,217.98,7.9930857]
[1734246927712,6.4362,218.07,218.01,7.9930857]
[1734246927900,1.5593,218.08,218.01,7.9930857]
[1734246928604,6.4362,218.12,218.02,0.68787829]
[1734246928805,6.4362,218.12,218.06,7.9930857]
[1734246929173,1.5593,218.14,218.08,7.9930857]
[1734246929471,0.541143,218.15,218.08,7.9930857]
[1734246929893,0.541143,218.15,218.05,20.0]
[1734246930107,0.541143,218.15,218.08,7.9930857]
[1734246930476,0.541143,218.15,218.1,7.9930857]
[1734246931908,0.541143,218.15,218.11,7.9930857]
[1734246933312,0.541143,218.15,218.12,7.9930857]
[1734246934576,0.541143,218.15,218.13,7.9930857]
[1734246935383,0.541143,218.15,218.11,21.572]
[1734246935580,0.541143,218.15,218.14,7.9930857]
[1734246939784,0.541143,218.15,218.14,8.80589732]
[1734246940215,0.541143,218.15,218.14,9.01157886]
[1734246940692,0.541143,218.15,218.14,9.13706886]
[1734246943220,0.541143,218.15,218.14,23.01706886]
[1734246943922,0.541143,218.15,218.14,22.81138732]
[1734246944234,13.76,218.38,218.14,22.81138732]
[1734246944235,20.0,218.32,218.19,20.0]
[1734246944398,7.869,218.35,218.25,7.9930857]
[1734246945121,7.869,218.35,218.24,7.9930857]
[1734246946115,23.776884,218.34,218.24,7.9930857]
[1734246946307,23.776884,218.34,218.25,7.9930857]
[1734246946722,23.776884,218.34,218.26,7.9930857]
[1734246948032,7.869,218.35,218.27,7.9930857]
[1734246948434,7.869,218.35,218.26,7.9930857]
[1734246948604,7.869,218.35,218.23,8.14987582]
[1734246948810,15.738,218.35,218.25,7.9930857]
[1734246949114,7.869,218.35,218.24,7.9930857]
[1734246949310,0.12549,218.34,218.24,7.9930857]
[1734246949507,23.902374,218.34,218.24,7.9930857]
[1734246949811,23.902374,218.34,218.25,7.9930857]
[1734246950706,7.869,218.35,218.27,7.9930857]
[1734246951021,7.869,218.35,218.28,7.9930857]
[1734246951336,7.869,218.35,218.26,0.68712039]
[1734246951337,7.869,218.35,218.27,7.9930857]
[1734246952417,7.993086,218.38,218.27,7.9930857]
[1734246952606,6.0671,218.42,218.31,7.9930857]
[1734246953210,6.0671,218.42,218.32,7.9930857]
[1734246953738,6.0671,218.42,218.31,7.9930857]
[1734246955328,6.0671,218.42,218.32,7.9930857]
[1734246955630,6.0671,218.42,218.33,7.9930857]
[1734246956012,6.0671,218.42,218.32,7.9930857]
[1734246957416,6.0671,218.42,218.33,7.9930857]
[1734246958043,6.0671,218.42,218.32,7.9930857]
[1734246958414,6.0671,218.42,218.29,0.14317969]
[1734246958415,6.0671,218.42,218.36,7.9930857]
[1734246958945,1.5793,218.43,218.36,7.9930857]
[1734246959338,6.3377,218.47,218.36,7.9930857]
[1734246960422,6.3377,218.47,218.36,8.67979173]
[1734246962526,1.82913257,218.56,218.36,8.93077173]
[1734246962713,6.3377,218.52,218.36,8.93077173]
[1734246964340,6.3377,218.52,218.36,34.29675573]
[1734246966843,6.3377,218.52,218.36,22.52678603]
[1734246967021,6.3377,218.52,218.36,30.51987173]
[1734246967533,20.0,218.49,218.36,2.27580603]
[1734246967732,6.3377,218.43,218.32,0.68672055]
[1734246967942,6.3377,218.43,218.31,1.73226663]
[1734246968150,6.3377,218.43,218.34,7.9930857]
[1734246968440,6.3377,218.43,218.35,7.9930857]
[1734246968652,6.3377,218.43,218.36,7.9930857]
[1734246969143,6.3377,218.43,218.35,7.9930857]
[1734246970052,6.3377,218.43,218.36,7.9930857]
[1734246970369,6.3377,218.43,218.35,7.9930857]
[1734246972028,0.47245225,218.37,218.35,7.9930857]
[1734246972241,0.47245225,218.37,218.31,0.14316663]
[1734246972891,0.47245225,218.37,218.33,7.9930857]
[1734246973146,0.47245225,218.37,218.35,7.9930857]
[1734246973722,0.47245225,218.37,218.36,7.9930857]
[1734246974561,0.47245225,218.37,218.34,7.9930857]
[1734246976354,0.47245225,218.37,218.31,0.83002342]
[1734246976355,0.47245225,218.37,218.35,7.9930857]
[1734246976766,0.47245225,218.37,218.31,0.14316663]
[1734246976975,0.47245225,218.37,218.32,7.9930857]
[1734246977341,0.47245225,218.37,218.33,7.9930857]
[1734246979468,0.47245225,218.37,218.31,8.13625233]
[1734246981141,0.47245225,218.37,218.32,7.9930857]
[1734246981747,0.47245225,218.37,218.31,8.13625233]
[1734246985672,0.47245225,218.37,218.33,7.9930857]
[1734246986560,0.47245225,218.37,218.31,0.14316663]
[1734246986755,0.25098,218.34,218.31,0.14316663]
[1734246986944,0.12549,218.34,218.24,7.9930857]
[1734246987150,23.776884,218.35,218.27,7.9930857]
[1734246987373,7.8771,218.36,218.29,7.9930857]
[1734246987754,7.8771,218.36,218.31,7.9930857]
[1734246988567,6.2984,218.36,218.31,7.9930857]
[1734246989081,0.47245225,218.37,218.32,7.9930857]
[1734246992568,0.47245225,218.37,218.27,20.68694237]
[1734246992882,0.47245225,218.37,218.31,7.9930857]
[1734246997272,0.47245225,218.37,218.33,7.9930857]
[1734246998992,0.47245225,218.37,218.29,0.68687788]
[1734246999293,0.47245225,218.37,218.31,7.9930857]
[1734247001789,0.47245225,218.37,218.33,7.9930857]
[1734247002564,0.47245225,218.37,218.35,7.9930857]
[1734247002763,0.47245225,218.37,218.35,8.67983316]
[1734247003066,0.47245225,218.37,218.35,7.9930857]
[1734247003776,0.47245225,218.37,218.36,8.67984343]
[1734247006981,0.47245225,218.37,218.36,32.82915807]
[1734247008063,0.47245225,218.37,218.36,46.06915807]
[1734247009587,0.47245225,218.37,218.36,180.76915807]
[1734247009790,0.47245225,218.37,218.36,180.08240034]
[1734247011462,0.47245225,218.37,218.36,156.18002634]
[1734247011770,0.47245225,218.37,218.36,142.81453634]
[1734247012288,0.47245225,218.37,218.36,8.11453634]
[1734247012491,0.47245225,218.37,218.36,8.80121147]
[1734247013292,0.47245225,218.37,218.36,0.80812577]
[1734247013593,0.47245225,218.37,218.36,8.11453634]
[1734247015223,0.47245225,218.37,218.36,0.12145064]
[1734247021120,24.37482625,218.37,218.36,0.12145064]
[1734247021485,24.37482625,218.37,218.27,7.9930857]
[1734247022913,24.37482625,218.37,218.22,0.68707031]
[1734247022914,23.902374,218.36,218.22,0.68707031]
[1734247023096,23.902374,218.36,218.25,7.9930857]
[1734247023724,23.902374,218.36,218.22,0.68707031]
[1734247023725,23.902374,218.36,218.26,7.9930857]
[1734247025466,0.12549,218.35,218.26,7.9930857]
[1734247025647,0.47245225,218.37,218.19,14.36428007]
[1734247025648,24.027864,218.33,218.19,14.36428007]
[1734247025850,24.027864,218.33,218.19,1.5982]
[1734247026032,24.027864,218.33,218.2,7.9930857]
[1734247026330,24.027864,218.33,218.19,9.5912857]
[1734247026536,24.027864,218.33,218.2,7.9930857]
[1734247027112,0.12549,218.29,218.19,7.9930857]
[1734247030041,0.25098,218.29,218.2,7.9930857]
[1734247030340,23.776884,218.33,218.23,7.9930857]
[1734247030635,8.2111,218.34,218.25,7.9930857]
[1734247030837,8.2111,218.34,218.24,7.9930857]
[1734247031043,0.12549,218.33,218.24,7.9930857]
[1734247032118,0.25098,218.33,218.24,7.9930857]
[1734247032321,0.25098,218.33,218.26,7.9930857]
[1734247032322,0.12549,218.33,218.26,7.9930857]
[1734247034518,0.12549,218.33,218.23,0.68704481]
[1734247034719,0.12549,218.33,218.26,7.9930857]
[1734247035424,6.574,218.34,218.28,7.9930857]
[1734247035635,0.12549,218.36,218.28,7.9930857]
[1734247036135,0.25098,218.36,218.27,7.9930857]
[1734247037014,0.12549,218.34,218.23,20.68698846]
[1734247037216,0.25098,218.34,218.23,7.9930857]
[1734247037410,0.25098,218.34,218.24,7.9930857]
[1734247037714,0.12549,218.35,218.25,7.9930857]
[1734247039420,0.12549,218.35,218.26,7.9930857]
[1734247045645,20.0,218.36,218.28,7.9930857]
[1734247045822,7.9385,218.39,218.29,8.68006543]
[1734247046026,7.9385,218.39,218.3,7.9930857]
[1734247046547,7.9385,218.39,218.28,7.9930857]
[1734247047725,7.9385,218.39,218.29,7.9930857]
[1734247048224,7.9385,218.39,218.28,7.9930857]
[1734247048421,0.12549,218.36,218.28,7.9930857]
[1734247049028,24.027864,218.36,218.24,0.68698014]
[1734247049222,24.027864,218.36,218.25,7.9930857]
[1734247049722,24.027864,218.36,218.25,8.68019192]
[1734247050525,24.027864,218.36,218.25,7.9930857]
[1734247051150,24.027864,218.36,218.22,1.5303]
[1734247051330,0.25098,218.32,218.21,134.7]
[1734247051523,0.25098,218.32,218.23,7.9930857]
[1734247051730,24.027864,218.3,218.16,1.61441935]
[1734247051930,24.027864,218.3,218.2,7.9930857]
[1734247052447,24.027864,218.3,218.19,7.9930857]
[1734247053647,0.25098,218.3,218.2,7.9930857]
[1734247053861,0.25098,218.3,218.22,7.9930857]
[1734247054458,7.9658,218.31,218.25,7.9930857]
[1734247054761,6.374,218.31,218.25,7.9930857]
[1734247055138,7.9658,218.36,218.26,7.9930857]
[1734247055340,7.9658,218.36,218.2,20.0]
[1734247055341,7.9658,218.36,218.27,8.68019437]
[1734247055732,0.12549,218.35,218.28,7.9930857]
[1734247056559,7.9658,218.36,218.28,7.9930857]
[1734247056761,7.9658,218.36,218.29,7.9930857]
[1734247056961,0.12549,218.35,218.27,7.9930857]
[1734247058270,0.12549,218.35,218.25,7.9930857]
[1734247058271,0.25098,218.35,218.25,7.9930857]
[1734247059361,0.25098,218.35,218.26,7.9930857]
[1734247062385,24.027864,218.35,218.24,7.9930857]
[1734247062551,0.12549,218.31,218.22,7.9930857]
[1734247065250,24.027864,218.31,218.22,7.9930857]
[1734247067478,24.027864,218.31,218.21,7.9930857]
[1734247071775,24.027864,218.31,218.17,0.68725968]
[1734247071987,24.027864,218.31,218.19,7.9930857]
[1734247073874,0.25098,218.29,218.19,7.9930857]
[1734247074389,0.25098,218.29,218.2,7.9930857]
[1734247074683,0.25098,218.29,218.21,7.9930857]
[1734247076556,0.12549,218.29,218.22,7.9930857]
[1734247076761,6.5625,218.3,218.22,0.68726102]
[1734247076958,6.5625,218.3,218.22,7.9930857]
[1734247078377,6.5625,218.3,218.23,0.68716261]
[1734247078986,6.5625,218.3,218.22,7.9930857]
[1734247079357,0.12549,218.29,218.2,7.9930857]
[1734247079696,0.12549,218.29,218.2,8.6802884]
[1734247080792,0.12549,218.29,218.2,7.9930857]
[1734247081661,0.25098,218.29,218.16,1.61441935]
[1734247081860,0.25098,218.27,218.16,8.08750505]
[1734247082972,0.25098,218.27,218.16,0.09441935]
[1734247083490,6.5625,218.23,218.16,0.09441935]
[1734247083783,0.25098,218.22,218.16,0.09441935]
[1734247088485,0.12549,218.22,218.16,0.09441935]
[1734247088672,0.25098,218.22,218.16,0.09441935]
[1734247088873,0.12549,218.22,218.16,0.09441935]
[1734247090987,6.5625,218.23,218.16,8.08750505]
[1734247093415,24.027864,218.22,218.16,0.09441935]
[1734247093690,0.25098,218.2,218.16,0.09441935]
[1734247094709,0.12549,218.18,218.16,0.09441935]
[1734247095198,24.027864,218.18,218.16,0.09441935]
[1734247098913,0.12549,218.18,218.16,0.09441935]
[1734247099069,20.0,218.17,218.16,0.09441935]
[1734247099276,20.25098,218.17,218.16,0.09441935]
[1734247103083,44.027864,218.17,218.16,0.09441935]
[1734247103475,44.027864,218.17,218.06,1.5661]
[1734247103821,0.25098,218.12,218.01,7.9930857]
[1734247103972,24.027864,218.12,218.0,9.5591857]
[1734247107407,24.027864,218.12,218.01,7.9930857]
[1734247110601,0.12549,218.12,218.02,8.68091083]
[1734247110806,1.5064,218.14,218.05,7.9930857]
[1734247111904,0.12549,218.13,218.05,7.9930857]
[1734247112414,0.12549,218.13,218.04,7.9930857]
[1734247112595,0.12549,218.13,218.03,8.68078194]
[1734247113904,0.12549,218.13,218.04,7.9930857]
[1734247116408,0.12549,218.08,217.93,1.6611]
[1734247116619,0.25098,218.06,217.96,13.10450603]
[1734247117390,0.25098,218.06,217.96,0.09450603]
[1734247121505,0.25098,218.06,217.96,0.78254334]
[1734247123312,0.25098,218.06,217.96,0.09450603]
[1734247127630,0.25098,218.06,217.96,0.78249933]
[1734247129834,0.25098,218.06,217.96,0.09450603]
[1734247130048,24.027864,218.04,217.96,0.09450603]
[1734247130416,0.12549,218.04,217.96,0.09450603]
[1734247130744,0.12549,218.04,217.96,0.78250383]
[1734247132334,6.0563,218.05,217.97,7.9930857]
[1734247132527,7.6179,218.1,218.0,7.9930857]
[1734247132838,7.6179,218.1,218.0,8.68092262]
[1734247133835,0.12549,218.09,218.0,7.9930857]
[1734247136429,0.12549,218.09,218.01,0.68782684]
[1734247137354,6.0563,218.1,218.02,7.9930857]
[1734247137529,6.0563,218.1,218.03,8.68082796]
[1734247139239,0.25098,218.14,218.03,8.68082796]
[1734247139439,7.5033,218.15,218.03,0.68774226]
[1734247139756,6.0017,218.15,218.08,7.9930857]
[1734247141634,6.0017,218.15,218.07,7.9930857]
[1734247142257,6.0017,218.15,218.07,8.68070567]
[1734247144150,6.0017,218.15,218.08,7.9930857]
[1734247145754,6.0017,218.15,218.07,8.68069238]
[1734247145968,6.0017,218.15,218.05,20.0]
[1734247145969,0.12549,218.14,218.05,7.9930857]
[1734247146257,0.12549,218.14,218.04,7.9930857]
[1734247146831,0.12549,218.14,218.05,7.9930857]
[1734247147039,0.12549,218.14,218.06,7.9930857]
[1734247151175,0.12549,218.14,218.05,7.9930857]
[1734247151481,24.027864,218.14,218.03,7.9930857]
[1734247151840,24.027864,218.14,218.04,8.6808215]
[1734247152740,0.12549,218.14,218.05,7.9930857]
[1734247156561,24.027864,218.14,218.03,7.9930857]
[1734247158374,6.0017,218.15,218.07,7.9930857]
[1734247159446,0.12549,218.19,218.09,7.9930857]
[1734247159660,0.12549,218.19,218.1,7.9930857]
[1734247159861,0.25098,218.19,218.1,7.9930857]
[1734247160070,0.25098,218.19,218.07,20.0]
[1734247160285,0.25098,218.19,218.08,7.9930857]
[1734247160948,0.25098,218.19,218.09,7.9930857]
[1734247161150,0.25098,218.19,218.1,7.9930857]
[1734247162072,0.25098,218.19,218.08,0.68755757]
[1734247162369,0.25098,218.19,218.1,7.9930857]
[1734247163465,0.12549,218.19,218.1,7.9930857]
[1734247163775,0.12549,218.19,218.11,7.9930857]
[1734247163974,0.12549,218.19,218.1,0.68755812]
[1734247164273,0.12549,218.19,218.1,7.9930857]
[1734247164478,0.12549,218.19,218.09,7.9930857]
[1734247166166,0.12549,218.19,218.07,20.0]
[1734247166167,0.12549,218.19,218.1,8.68066336]
[1734247168571,0.25098,218.19,218.1,0.68757766]
[1734247168886,7.7035,218.2,218.1,8.68066336]
[1734247169093,7.7035,218.2,218.11,7.9930857]
[1734247169285,7.7035,218.2,218.13,7.9930857]
[1734247169578,7.7035,218.2,218.13,8.68050854]
[1734247170484,7.7035,218.2,218.13,7.9930857]
[1734247170663,6.2019,218.2,218.15,7.9930857]
[1734247173183,27.7658,218.25,218.15,7.9930857]
[1734247173381,27.7658,218.25,218.15,8.68045449]
[1734247174094,0.25098,218.24,218.14,7.9930857]
[1734247174303,24.027864,218.24,218.1,7.9930857]
[1734247174462,0.25098,218.2,218.1,7.9930857]
[1734247176484,0.12549,218.23,218.13,7.9930857]
[1734247176695,0.25098,218.23,218.14,0.68744147]
[1734247177394,7.7658,218.25,218.15,7.9930857]
[1734247177984,7.7658,218.25,218.16,7.9930857]
[1734247178191,7.7658,218.25,218.15,7.9930857]
[1734247179871,0.25098,218.24,218.13,7.9930857]
[1734247180405,0.25098,218.24,218.1,0.68742909]
[1734247180582,0.25098,218.24,218.13,7.9930857]
[1734247180785,0.25098,218.24,218.1,0.68742909]
[1734247180786,0.25098,218.24,218.12,7.9930857]
[1734247182478,0.25098,218.24,218.13,7.9930857]
[1734247183575,24.027864,218.24,218.12,7.9930857]
[1734247186204,24.027864,218.24,218.09,20.0]
[1734247186205,24.027864,218.24,218.11,7.9930857]
[1734247187208,0.12549,218.2,218.1,7.9930857]
[1734247187374,0.25098,218.2,218.1,7.9930857]
[1734247187879,24.027864,218.2,218.1,7.9930857]
[1734247191504,24.027864,218.2,218.07,0.68748999]
[1734247191801,24.027864,218.18,218.06,7.9930857]
[1734247193499,24.027864,218.18,218.05,7.9930857]
[1734247194102,0.12549,218.14,218.04,7.9930857]
[1734247194304,0.25098,218.12,218.01,1.5382]
[1734247194494,1.6267,218.11,217.99,0.68776024]
[1734247194796,1.6267,218.11,217.96,0.68786694]
[1734247194797,20.0,218.09,217.96,0.68786694]
[1734247195015,24.027864,218.08,217.97,0.62]
[1734247195314,24.027864,218.08,217.95,7.9930857]
[1734247195873,20.0,218.05,217.95,7.9930857]
[1734247196078,6.4712,218.04,217.95,7.9930857]
[1734247196377,0.25098,218.01,217.91,0.68799959]
[1734247196600,20.25098,218.01,217.91,7.9930857]
[1734247196798,0.25098,218.01,217.9,7.9930857]
[1734247197015,1.6267,218.02,217.91,0.68808997]
[1734247197309,1.6267,218.02,217.95,7.9930857]
[1734247198481,1.6267,218.02,217.91,0.68808997]
[1734247198482,1.6267,218.02,217.94,7.9930857]
[1734247198889,1.6267,218.02,217.93,7.9930857]
[1734247199899,1.6267,218.02,217.94,7.9930857]
[1734247200903,20.25098,218.01,217.88,134.7]
[1734247201204,20.25098,218.01,217.91,7.9930857]
[1734247201404,20.25098,218.01,217.9,7.9930857]
[1734247201619,24.027864,218.01,217.9,7.9930857]
[1734247203086,24.027864,218.01,217.91,7.9930857]
[1734247204586,24.027864,218.01,217.87,20.0]
[1734247204792,24.027864,218.01,217.89,7.9930857]
[1734247205629,0.12549,217.95,217.85,0.6882569]
[1734247205901,0.12549,217.95,217.86,7.9930857]
[1734247206288,6.4712,217.96,217.89,7.9930857]
[1734247207208,6.4712,217.96,217.91,7.9930857]
[1734247207509,0.12549,218.01,217.93,7.9930857]
[1734247207718,0.25098,218.01,217.93,7.9930857]
[1734247209099,0.25098,218.01,217.92,7.9930857]
[1734247209518,0.25098,218.01,217.91,7.9930857]
[1734247210109,0.25098,218.01,217.92,7.9930857]
[1734247210410,8.0979,218.02,217.95,7.9930857]
[1734247210611,8.0979,218.02,217.97,7.9930857]
[1734247210790,8.0979,218.02,217.96,7.9930857]
[1734247210990,8.0979,218.02,217.92,20.68800108]
[1734247210991,0.12549,218.01,217.92,20.68800108]
[1734247211208,0.12549,218.01,217.93,7.9930857]
[1734247211912,8.0979,218.02,217.95,7.9930857]
[1734247212116,8.0979,218.02,217.96,7.9930857]
[1734247212804,8.0979,218.02,217.95,7.9930857]
[1734247214106,0.25098,218.01,217.92,7.9930857]
[1734247216025,24.027864,218.01,217.87,20.68817853]
[1734247216224,0.12549,217.97,217.89,7.9930857]
[1734247216809,23.902374,218.01,217.92,7.9930857]
[1734247217016,23.902374,218.01,217.93,7.9930857]
[1734247217415,0.12549,218.0,217.92,7.9930857]
[1734247217725,0.25098,218.0,217.92,7.9930857]
[1734247218709,0.25098,218.0,217.93,7.9930857]
[1734247218912,8.0979,218.02,217.98,7.9930857]
[1734247218913,6.4712,218.02,217.98,7.9930857]
[1734247219220,7.6053,218.07,218.0,7.9930857]
[1734247219621,7.6053,218.07,217.99,7.9930857]
[1734247221000,7.6053,218.07,217.98,7.9930857]
[1734247221303,7.6053,218.07,217.99,7.9930857]
[1734247221827,7.6053,218.07,218.02,7.9930857]
[1734247222026,46.25207972,218.31,217.93,5.0]
[1734247222027,7.6053,218.12,218.04,7.9930857]
[1734247222198,7.6053,218.12,218.05,7.9930857]
[1734247222403,7.6053,218.12,217.97,0.68784947]
[1734247222404,7.6053,218.12,218.04,7.9930857]
[1734247223312,7.6053,218.12,218.04,12.48919271]
[1734247223504,6.0136,218.12,218.05,12.48919271]
[1734247223708,6.0136,218.12,218.07,12.48919271]
[1734247223919,6.0136,218.12,218.08,12.48919271]
[1734247224217,6.0136,218.12,218.07,12.48919271]
[1734247225510,1.5917,218.17,218.09,12.48919271]
[1734247225511,0.12549,218.16,218.09,12.48919271]
[1734247225702,0.25098,218.16,218.09,12.48919271]
[1734247226017,0.12549,218.16,218.09,12.48919271]
[1734247227403,0.12549,218.16,218.08,12.48919271]
[1734247227404,0.25098,218.16,218.08,12.48919271]
[1734247228506,0.25098,218.16,218.02,13.17690249]
[1734247228507,0.25098,218.16,218.09,12.48919271]
[1734247228730,0.12549,218.16,218.09,12.48919271]
[1734247229118,0.25098,218.16,218.09,12.48919271]
[1734247230907,0.25098,218.16,218.1,12.48919271]
[1734247231613,7.6053,218.17,218.11,12.48919271]
[1734247231831,6.0136,218.17,218.12,12.48919271]
[1734247233218,16.66257153,218.2,218.12,12.48919271]
[1734247233415,0.25098,218.21,218.14,12.48919271]
[1734247234318,0.25098,218.21,218.13,12.48919271]
[1734247234515,0.25098,218.21,218.11,12.48919271]
[1734247234911,24.027864,218.21,218.11,12.48919271]
[1734247235107,24.027864,218.21,218.12,12.48919271]
[1734247235817,0.25098,218.17,218.1,12.48919271]
[1734247238120,0.25098,218.17,218.09,12.48919271]
[1734247238317,24.027864,218.17,218.07,12.48919271]
[1734247238517,20.0,218.12,218.04,12.48919271]
[1734247238717,20.0,218.12,218.01,1.6174]
[1734247239032,20.0,218.12,218.03,12.48919271]
[1734247239620,20.0,218.12,218.04,12.48919271]
[1734247241723,20.0,218.12,218.02,12.48919271]
[1734247241724,24.027864,218.11,218.02,12.48919271]
[1734247242143,6.0367,218.1,217.97,0.68781148]
[1734247242437,0.12549,218.09,218.01,12.48919271]
[1734247242620,24.027864,218.09,218.0,12.48919271]
[1734247243222,24.027864,218.09,218.0,7.99623305]
[1734247244425,24.027864,218.09,218.01,7.99623305]
[1734247244618,6.0367,218.1,218.03,7.99623305]
[1734247244832,6.0367,218.1,218.04,7.99623305]
[1734247245753,6.0367,218.1,218.03,7.99623305]
[1734247248444,6.0367,218.1,218.04,7.99623305]
[1734247249534,6.0367,218.1,218.03,7.99623305]
[1734247250944,6.0367,218.1,218.04,7.99623305]
[1734247251821,6.0367,218.1,218.07,7.99623305]
[1734247252629,6.0367,218.1,218.04,7.99623305]
[1734247253326,6.0367,218.1,217.97,0.68776461]
[1734247253327,24.027864,218.09,217.97,0.68776461]
[1734247253649,24.027864,218.09,218.0,7.99623305]
[1734247253855,24.027864,218.09,217.99,7.99623305]
[1734247254040,0.12549,218.05,217.98,7.99623305]
[1734247254254,0.25098,218.05,217.98,7.99623305]
[1734247256955,0.25098,218.05,217.99,7.99623305]
[1734247257543,0.25098,218.05,217.98,7.99623305]
[1734247258353,0.25098,218.05,217.96,7.99623305]
[1734247258354,24.027864,218.05,217.96,7.99623305]
[1734247258548,24.027864,218.05,217.95,7.99623305]
[1734247258549,0.25098,218.01,217.95,7.99623305]
[1734247258965,0.25098,218.01,217.94,7.99623305]
[1734247260755,20.0,217.98,217.92,7.99623305]
[1734247260949,0.12549,217.97,217.92,7.99623305]
[1734247262754,0.12549,217.97,217.9,7.99623305]
[1734247262755,24.027864,217.97,217.9,7.99623305]
[1734247263061,0.25098,217.97,217.91,7.99623305]
[1734247266849,6.6307,218.02,217.94,7.99623305]
[1734247267050,6.6307,218.02,217.85,0.68819298]
[1734247267051,6.6307,218.02,217.95,7.99623305]
[1734247267236,0.12549,218.01,217.95,7.99623305]
[1734247267438,0.12549,218.01,217.94,7.99623305]
[1734247268127,0.12549,217.98,217.87,0.68817591]
[1734247268330,20.25098,217.98,217.91,7.99623305]
[1734247269556,0.25098,217.96,217.89,7.99623305]
[1734247271556,0.25098,217.96,217.88,7.99623305]
[1734247276451,0.12549,217.94,217.82,0.75703814]
[1734247276665,24.027864,217.94,217.85,7.99623305]
[1734247276959,24.027864,217.94,217.84,7.99623305]
[1734247277741,24.027864,217.94,217.82,0.06869075]
[1734247278040,24.027864,217.94,217.83,7.99623305]
[1734247278441,24.027864,217.94,217.82,8.0649238]
[1734247279360,24.027864,217.94,217.82,0.06869075]
[1734247279361,24.027864,217.9,217.82,0.06869075]
[1734247280141,8.2184,217.89,217.82,0.06869075]
[1734247280342,24.027864,217.88,217.82,0.06869075]
[1734247281664,8.2184,217.89,217.82,8.0649238]
[1734247282041,8.2184,217.89,217.83,7.99623305]
[1734247282238,20.0,217.91,217.83,7.99623305]
[1734247282544,6.6604,217.95,217.86,7.99623305]
[1734247282752,8.2184,218.02,217.9,7.99623305]
[1734247282954,8.2184,218.02,217.94,7.99623305]
[1734247283147,6.6604,218.07,217.96,7.99623305]
[1734247283553,6.6604,218.07,217.87,134.82549]
[1734247283554,6.6604,218.07,217.95,7.99623305]
[1734247283740,0.12549,218.06,217.94,7.99623305]
[1734247284040,0.12549,218.06,217.93,7.99623305]
[1734247284465,20.0,218.04,217.92,7.99623305]
[1734247284664,0.25098,218.02,217.93,7.99623305]
[1734247284864,0.12549,218.02,217.93,7.99623305]
[1734247285171,0.25098,218.02,217.93,12.50235976]
[1734247285550,24.027864,218.02,217.93,12.50235976]
[1734247286446,24.027864,218.02,217.92,12.50235976]
[1734247290272,24.027864,218.02,217.93,12.50235976]
[1734247290771,24.027864,218.02,217.94,12.50235976]
[1734247291085,0.12549,218.02,217.95,12.50235976]
[1734247291473,0.25098,218.02,217.95,12.50235976]
[1734247294088,0.25098,218.02,217.94,12.50235976]
[1734247295986,0.25098,218.02,217.93,12.50235976]
[1734247296158,0.25098,218.02,217.87,0.68815859]
[1734247296159,0.25098,218.02,217.92,12.50235976]
[1734247296361,0.12549,217.99,217.92,12.50235976]
[1734247296561,20.0,218.0,217.92,12.50235976]
[1734247296989,0.12549,217.99,217.92,12.50235976]
[1734247297498,24.027864,217.99,217.91,12.50235976]
[1734247297661,24.027864,217.99,217.87,14.58815859]
[1734247297662,0.25098,217.95,217.87,26.40235976]
[1734247298060,0.25098,217.95,217.87,13.9]
[1734247298480,0.25098,217.95,217.88,12.50235976]
[1734247299068,0.25098,217.95,217.87,12.50235976]
[1734247299987,6.5948,217.97,217.91,12.50235976]